Cogmind - Beta 13 @@@ ROGUE MODE // 2024.06.13 @ 02:15:43 Player: QXander Result: Destroyed by S-10 Pest with Light Assault Rifle Performance ------------- Evolutions (2) 1000 Regions Visited (4) 800 Robots Destroyed (48) 240 Value Destroyed (1173) 1173 Prototype IDs (2) 40 Alien Tech Used (0) 0 Bonus (33) 33 TOTAL SCORE: 3286 Bonus ------- High Alert Combat Kills 33 Cogmind --------- Core Integrity 0/550 Matter 242/300 Energy 100/100 System Corruption 2% Temperature Cool (0) Movement Walking (120) Location -8/Materials Parts ------- > --- POWER (2) -------- (None) > --- PROPULSION (3) --- Aluminum Leg > --- UTILITY (4) ------ Visual Processing Unit Hacking Suite > --- WEAPON (2) ------- Light Assault Rifle > --- INVENTORY (5) ---- (None) Peak State ------------ > --- POWER ------------ Light Nuclear Core Light Nuclear Core > --- PROPULSION ------- Aluminum Leg Aluminum Leg > --- UTILITY ---------- Heat Sink Visual Processing Unit Particle Charger Hacking Suite > --- WEAPON ----------- Advanced Beam Cannon Improved Datajack > --- INVENTORY -------- Light Assault Rifle [Rating: 23] Favorites ----------- Power Light Ion Engine Engine Light Ion Engine Power Core Light Nuclear Core Propulsion Aluminum Leg Leg Aluminum Leg Flight Unit Flight Unit Utility Visual Processing Unit Device Heat Sink Processor Visual Processing Unit Hackware Hacking Suite Weapon Particle Gun Energy Gun Particle Gun Energy Cannon Light EM Pulse Cannon Ballistic Gun Heavy Assault Rifle Ballistic Cannon Light Cannon Launcher Mini Grenade Launcher Special Melee Weapon Improved Datajack Build | -11 -10 -9 -9 -8 ------- Run | Yrd Mat Mat Sto Mat Slots Evolved 4 | . . 2 . 2 Power 1 | . . 1 . . Propulsion 1 | . . . . 1 Utility 2 | . . 1 . 1 Weapon . | . . . . . Parts Attached 76 | 7 9 10 23 27 Power 18 | 1 1 3 7 6 Engine 15 | 1 1 3 7 3 Core 3 | . . . . 3 Reactor . | . . . . . Propulsion 15 | 3 1 1 3 7 Treads . | . . . . . Leg 12 | 3 1 1 2 5 Wheel . | . . . . . Hover . | . . . . . Flight 3 | . . . 1 2 Utility 12 | 1 4 3 1 3 Device 9 | 1 2 3 1 2 Storage . | . . . . . Processor 2 | . 2 . . . Hackware 1 | . . . . 1 Protection . | . . . . . Artifact . | . . . . . Weapon 31 | 2 3 3 12 11 Energy Gun 3 | 1 1 . 1 . Energy Cannon 6 | . . 1 3 2 Ballistic Gun 17 | 1 1 2 5 8 Ballistic Cannon 1 | . 1 . . . Launcher 3 | . . . 3 . Special Weapon . | . . . . . Impact Weapon . | . . . . . Slashing Weapon . | . . . . . Piercing Weapon . | . . . . . Special Melee Weapon 1 | . . . . 1 Unidentified Prototypes 2 | . . . 2 . Parts Lost 16 | . . . 4 12 Power 4 | . . . . 4 Propulsion 6 | . . . 2 4 Utility 2 | . . . . 2 Weapon 4 | . . . 2 2 Highest Loss Streak 9 | . . . 2 9 To Critical Strikes . | . . . . . Average Slot Usage (%) 81 | . 96 98 79 58 Engine 14 | . 14 22 20 3 Core 1 | . . . . 5 Leg 18 | . 28 20 17 6 Flight 2 | . . . 1 8 Device 8 | . 20 10 1 4 Processor 14 | . 4 22 22 13 Hackware 2 | . . . . 8 Energy Gun 4 | . 14 4 1 . Energy Cannon 3 | . . 6 5 2 Ballistic Gun 6 | . 6 10 6 3 Ballistic Cannon 2 | . 7 . . . Naked Turns . | . . . . . Heaviest Build 23 | 8 13 20 23 19 Greatest Support 20 | 20 20 20 20 20 Greatest Overweight (x) 5 | . . 1 5 1 Average Overweight (x) . | . . . . . Largest Inventory Capacity 5 | 5 5 5 5 5 Average Capacity 5 | 5 5 5 5 5 Most Carried 5 | 3 5 5 5 5 Average Carried 2 | . 2 3 4 2 Final Capacity 5 | 5 5 5 5 5 Final Carried 4 | 2 3 4 4 . Class Distribution -------------------- 53% | Mutant 36% | Scavenger-Mutant 8% | Scavenger-Skirmisher Dominant Class ---------------- Mutant | -10/Materials Scavenger-Mutant | -9/Materials Mutant | -9/Storage Scavenger-Mutant | -8/Materials Resources | -11 -10 -9 -9 -8 ----------- Run | Yrd Mat Mat Sto Mat Matter Collected 1128 | 275 133 98 101 521 Remotely 108 | . 108 . . . Salvage Created 1256 | 40 204 125 469 418 Parts 101 | 2 18 12 49 20 Haulers Intercepted . | . . . . . Recyclers Shooed . | . . . . . Parts Field Recycled . | . . . . . Retrieved Matter . | . . . . . Parts Self-Destructed . | . . . . . Prevented . | . . . . . Kills | -11 -10 -9 -9 -8 ------- Run | Yrd Mat Mat Sto Mat Combat Hostiles Destroyed 36 | 1 5 4 14 12 Guns 18 | 1 2 2 5 8 Cannons 13 | . 3 2 4 4 AOE 4 | . . . 4 . Classes Destroyed 6 | 1 1 2 2 . Worker 1 | . . . 1 . Builder 6 | . . . 6 . Watcher 5 | . 1 1 2 1 Swarmer 14 | . . 3 6 5 Grunt 18 | 1 5 . 6 6 Sentry 4 | . . 1 2 1 Best Kill Streak 14 | 1 2 4 14 3 Combat Bots Only 6 | 1 2 4 6 3 Max Kills in Single Turn 3 | 1 2 2 3 2 Gunslinging 1 | . 1 . . . Exploded 1 | . . . 1 . Melee . | . . . . . Uniques/NPCs Destroyed . | . . . . . Combat | -11 -10 -9 -9 -8 -------- Run | Yrd Mat Mat Sto Mat Hostile Shots Fired 336 | 7 23 12 105 189 Missed 101 | 1 5 2 36 57 Damage Taken 2721 | 65 211 87 788 1570 Core 864 | 20 56 13 222 553 Absorbed by Shields . | . . . . . Regen/Repaired (Parts) 39 | . . 39 . . Core Remaining (%) 67 | 92 69 . 41 . Volleys Fired 122 | 5 12 4 47 54 Largest 2 | 2 2 2 2 2 Hottest 100 | 70 100 88 79 93 Shots Fired 164 | 10 24 8 62 60 Gun 95 | 10 17 5 29 34 Cannon 59 | . 7 3 23 26 Launcher 10 | . . . 10 . Special . | . . . . . Kinetic 82 | 5 12 4 27 34 Thermal 44 | 5 12 1 . 26 Explosive 10 | . . . 10 . Electromagnetic 28 | . . 3 25 . Robot Hit Streak 12 | 2 5 7 12 5 Robot Miss Streak 4 | 2 3 1 3 4 Penetration Max . | . . . . . Secondary Targets 2 | . 1 . . 1 Max Gunslinging Chain 1 | . 1 . . 1 Shots Hit Robots 112 | 6 16 4 41 45 Core Hits 68 | 2 10 5 27 24 Critical Kills 1 | . . . . 1 Critical Parts Destroyed . | . . . . . Critical Strikes 3 | 1 1 . . 1 Burn 2 | 1 1 . . . Meltdown 1 | . . . . 1 Melee Attacks 8 | . . . . 8 Impact . | . . . . . Slashing . | . . . . . Piercing . | . . . . . Sneak Attacks 4 | . . . . 4 Combat Hostiles . | . . . . . Follow-up Attacks . | . . . . . Damage Inflicted 2474 | 76 252 101 1461 584 Guns 752 | 76 168 48 182 278 Cannons 837 | . 84 40 407 306 Explosions 872 | . . . 872 . Melee . | . . . . . Ramming 13 | . . 13 . . Kinetic 640 | 28 136 34 164 278 Thermal 557 | 48 116 14 73 306 Explosive 799 | . . . 799 . Electromagnetic 465 | . . 40 425 . Impact . | . . . . . Slashing . | . . . . . Piercing . | . . . . . Highest Corruption 2 | . . . . 2 Average Corruption 2 | . . . . 2 Corruption Purged . | . . . . . Corruption Blocked . | . . . . . Effects 8 | . . . . 8 Message Errors 3 | . . . . 3 Matter Fused 2 | . . . . 2 Energy Discharges 1 | . . . . 1 Parts Rejected 1 | . . . . 1 Misfires 1 | . . . . 1 Overload Shots . | . . . . . Overflow Damage 129 | . . . 122 7 Projectiles 41 | . . . 34 7 Explosions 88 | . . . 88 . Melee . | . . . . . Knockbacks . | . . . . . Impact . | . . . . . Kinetic . | . . . . . Secondary . | . . . . . Self-Inflicted Damage 87 | . . . 87 . Shots 3 | . . . 3 . Rammed . | . . . . . Targets Rammed 2 | . . 1 1 . Kicked 2 | . . 1 1 . Crushed . | . . . . . Highest Temperature 329 | 81 91 48 204 329 Average Temperature 81 | 42 31 21 71 128 Received Heat Transfer 957 | 36 141 . 168 612 Effects 3 | . . . . 3 Energy Bleed 1 | . . . . 1 Interference 2 | . . . . 2 Siege Activations . | . . . . . Robots Corrupted 1 | . . . 1 . Combat Hostiles 1 | . . . 1 . Parts Fried 3 | . . . 3 . Impact Corruptions . | . . . . . Robots Melted 1 | . . . . 1 Combat Hostiles . | . . . . . Parts Melted 1 | . . . . 1 Heat Transferred 1247 | 222 370 37 100 518 Parts Sabotaged . | . . . . . Parts Stolen . | . . . . . Parts Stripped . | . . . . . Power Chain Reactions 1 | . . . 1 . Alert | -11 -10 -9 -9 -8 ------- Run | Yrd Mat Mat Sto Mat Peak Influence 470 | 20 138 151 344 470 Initial 144 | . 13 3 63 144 Average 149 | 4 50 67 195 283 Maximum Alert Level 2 | . . . 1 2 Low Security (%) 70 | 100 100 100 51 38 Level 1 23 | . . . 48 37 Level 2 5 | . . . . 24 Level 3 . | . . . . . Level 4 . | . . . . . Level 5 . | . . . . . High Security . | . . . . . Max Security . | . . . . . Squads Dispatched 3 | . 1 . 1 1 Investigation 1 | . 1 . . . Extermination . | . . . . . Reinforcement 2 | . . . 1 1 Assault . | . . . . . Garrison . | . . . . . Intercept . | . . . . . Searches Triggered . | . . . . . Construction Impeded . | . . . . . Haulers Reinforced . | . . . . . Active Scanning Responses . | . . . . . Cargo Convoy Interrupts . | . . . . . Stealth | -11 -10 -9 -9 -8 --------- Run | Yrd Mat Mat Sto Mat Distress Signals 1 | . . . 1 . Communications Jammed . | . . . . . Distress Signals . | . . . . . Times Spotted 56 | 1 6 5 18 26 Peak Tracking Total 9 | 1 3 4 5 9 Tactical Retreats 1 | . . . . 1 Traps | -11 -10 -9 -9 -8 ------- Run | Yrd Mat Mat Sto Mat Traps Triggered 3 | . 1 . 1 1 Indirectly . | . . . . . Trap Hack Attempts . | . . . . . Triggered . | . . . . . Disarmed . | . . . . . Reprogrammed . | . . . . . Reused . | . . . . . Traps Extracted . | . . . . . Installed . | . . . . . Triggered . | . . . . . Machines | -11 -10 -9 -9 -8 ---------- Run | Yrd Mat Mat Sto Mat Machines Disabled 3 | . . . 1 2 Max in Single Turn 1 | . . . 1 1 Machines Repaired . | . . . . . Machines Dismantled . | . . . . . Machines Sabotaged . | . . . . . Overloaded Fab Kills . | . . . . . Hacking | -11 -10 -9 -9 -8 --------- Run | Yrd Mat Mat Sto Mat Machines Accessed 11 | . 3 2 5 1 Terminals 7 | . 2 1 3 1 Fabricators . | . . . . . Repair Stations 1 | . . 1 . . Recycling Units 2 | . 1 . 1 . Scanalyzers . | . . . . . Garrison Access 1 | . . . 1 . Total Hacks 25 | . 9 6 9 1 Successful 21 | . 9 4 7 1 Failed 4 | . . 2 2 . Catastrophic . | . . . . . Database Lockouts . | . . . . . Manual 2 | . . 2 . . Terminals 13 | . 4 3 5 1 Fabricators . | . . . . . Repair Stations 3 | . . 3 . . Recycling Units 8 | . 5 . 3 . Scanalyzers . | . . . . . Garrison Access 1 | . . . 1 . Terminal Hacks 12 | . 4 2 5 1 Record 5 | . 2 2 1 . Open Door 1 | . . . 1 . Emergency Access Points 1 | . . . 1 . Locate Traps 1 | . . . 1 . Transport Status 1 | . 1 . . . Investigation Status 1 | . 1 . . . Reinforcement Status 1 | . . . 1 . Recall Assault 1 | . . . . 1 Fabricator Hacks . | . . . . . Repair Station Hacks 2 | . . 2 . . Scan Component 1 | . . 1 . . Repair 1 | . . 1 . . Recycling Unit Hacks 7 | . 5 . 2 . Recycle Component 1 | . 1 . . . Process 2 | . 2 . . . Report Inventory 3 | . 2 . 1 . Retrieve Components 1 | . . . 1 . Scanalyzer . | . . . . . Garrison Access Hacks . | . . . . . Unauthorized Hacks . | . . . . . Terminals . | . . . . . Fabricators . | . . . . . Repair Stations . | . . . . . Recycling Units . | . . . . . Scanalyzers . | . . . . . Garrison Access . | . . . . . Data Cores Recovered . | . . . . . Used . | . . . . . Hacking Detections 6 | . 1 2 2 1 Full Trace Events . | . . . . . Feedback Events . | . . . . . Feedback Blocked . | . . . . . Robot Schematics Acquired . | . . . . . Robots Built . | . . . . . Authchips . | . . . . . Time . | . . . . . Total Robot Build Rating . | . . . . . Part Schematics Acquired . | . . . . . Parts Built . | . . . . . Authchips . | . . . . . Time . | . . . . . Total Part Build Rating . | . . . . . Parts Repaired 1 | . . 1 . . Time 26 | . . 26 . . Parts Recycled 1 | . 1 . . . Recycled Matter 109 | . 109 . . . Retrieved Matter . | . . . . . Retrieved Components 3 | . . . 3 . Parts Scanalyzed . | . . . . . Part Schematics Acquired . | . . . . . Parts Damaged . | . . . . . Bothacking | -11 -10 -9 -9 -8 ------------ Run | Yrd Mat Mat Sto Mat Used RIF Installer . | . . . . . Robots Hacked 3 | . . . . 3 Non-combat 2 | . . . . 2 Combat 1 | . . . . 1 Robot Hacks Applied 3 | . . . . 3 parse_system 3 | . . . . 3 Relay Couplers Released . | . . . . . Fabnet Peak Effective % . | . . . . . Robots Rewired . | . . . . . Allies Hacked . | . . . . . Hacks Repelled . | . . . . . Allies | -11 -10 -9 -9 -8 -------- Run | Yrd Mat Mat Sto Mat Total Allies . | . . . . . Largest Group . | . . . . . Highest-Rated Group . | . . . . . Highest-Rated Ally . | . . . . . Total Orders . | . . . . . Ally Attacks . | . . . . . Total Damage . | . . . . . Kills . | . . . . . Allies Corrupted . | . . . . . Allies Melted . | . . . . . Intel | -11 -10 -9 -9 -8 ------- Run | Yrd Mat Mat Sto Mat Robot Analysis Total . | . . . . . Derelict Logs Recovered . | . . . . . Drone Launches . | . . . . . Drone Recoveries . | . . . . . Exploration | -11 -10 -9 -9 -8 ------------- Run | Yrd Mat Mat Sto Mat Turns Passed 2009 | 119 537 275 593 485 Spaces Moved 1580 | 90 394 189 410 497 Core 38 | 27 . . 8 3 Treads . | . . . . . Legs 994 | 63 394 189 257 91 Wheels . | . . . . . Hover . | . . . . . Flight 548 | . . . 145 403 Fastest Speed 34 | 50 120 120 40 34 Average Speed 94 | 99 120 124 103 54 Slowest Speed 300 | 120 120 190 300 190 Overloaded Moves . | . . . . . Propulsion Burnouts . | . . . . . Robots Hopped 11 | . . . . 11 Cave-ins Triggered . | . . . . . Exploration Rate (%) 26 | 6 37 11 41 37 Regions Visited 4 Branch Regions 1 Pre-discovered Areas . | . . . . . Known Exits Taken 3 | . 1 1 1 . Unknown Exits Taken 1 | 1 . . . . Scrap Searched . | . . . . . Spaces Dug . | . . . . . Terrain Destroyed 86 | . . . 84 2 Melee . | . . . . . Projectile 2 | . . . . 2 AOE 84 | . . . 84 . Terrain Rammed . | . . . . . Walls Destroyed . | . . . . . Machines Disabled . | . . . . . Actions | -11 -10 -9 -9 -8 --------- Run | Yrd Mat Mat Sto Mat Total 1966 | 109 438 225 536 658 Wait 25 | . 1 . . 24 Move 1554 | 89 393 188 409 475 Hop 11 | . . . . 11 Pick Up 78 | 8 11 11 20 28 Fast Attach . | . . . . . Attach 66 | 6 6 8 21 25 Detach 36 | . 4 4 16 12 Swap 10 | 1 3 2 2 2 Drop 54 | . 8 7 20 19 Fire 122 | 5 12 4 47 54 Melee 8 | . . . . 8 Ram . | . . . . . Kick 2 | . . 1 1 . Crush . | . . . . . Escape Stasis . | . . . . . Rewire . | . . . . . Trap . | . . . . . Miscellaneous . | . . . . . Route ------- -11/Scrapyard -10/Materials (discovered 2 exits: *Mat / [*Min]) -9/Materials -9/Storage -8/Materials History --------- Turn | Location | Event 2 | -11/Scrapyard | Met Revision 17 76 | -11/Scrapyard | Discovered new exit (range 8) 120 | -11/Scrapyard | Entered Materials 148 | -10/Materials | Discovered new exit (range 15) 303 | -10/Materials | Build established: Mutant 498 | -10/Materials | Discovered new exit (range 3) 654 | -10/Materials | Identified exit to Materials 657 | -10/Materials | Entered another Materials area 657 | -9/Materials | Evolved 2 slots: Power x1, Utility x1 829 | -9/Materials | Discovered new exit (range 13) 846 | -9/Materials | Repaired Aluminum Leg 876 | -9/Materials | Identified exit to Storage 932 | -9/Materials | Entered Storage 1412 | -9/Storage | Core integrity fell below 50% 1504 | -9/Storage | Discovered new exit (range 15) 1510 | -9/Storage | Identified exit to Materials 1525 | -9/Storage | Entered Materials 1525 | -8/Materials | Evolved 2 slots: Propulsion x1, Utility x1 1977 | -8/Materials | Core integrity fell below 50% 1990 | -8/Materials | Core integrity fell below 20% 2010 | -8/Materials | Destroyed by S-10 Pest with Light Assault Rifle Last Messages --------------- K-01 Serf collects debris. Heat Sink destroyed. K-01 Serf collects debris. G-47 Trooper destroyed. XZZC#XQRMA6QYL9XJX%7DFPDUTN7PHXMZCS Imp. Datajack destroyed. K-01 Serf destroyed. Aluminum Leg destroyed. Lgt. Nuclear Core destroyed. Critical hit (Burn: +37). Adv. Beam Cannon destroyed. Acquired 41 matter. Aluminum Leg destroyed. Acquired Aluminum Leg. Lgt. Nuclear Core destroyed. Acquired Aluminum Leg. Critical hit (Burn: +37). Aluminum Leg destroyed. S-10 Pest suffers critical hit (Burn). S-10 Pest destroyed. Map ----- +----------------------------------------------------+ | ????????????????????????????# # ! """ #????? | | ????????????????????????????# # """ #????? | | ????????????????????????????# # """ #????? | | ???????????????# ########## ###########????? | | ???????????????# #??????????????? | | ???????????????# #??????????????? | | ???????????????# #??????????????? | | ???????????????# ############ #??????????????? | | ???????????????# #??????????# #??????????????? | | ???????????????# #??????????# #??????????????? | | ???????????????# ^#??????????# #??????????????? | | ???????????????# #??????????# #??????????????? | | ???????????????# #??????????# #??????????????? | | ???????????????# #??????????# #??????????????? | | ???????????????# #??????????# #??????????????? | | ??????????????## #??????????# #??????????????? | | ??????????????#" +??????????# #??????????????? | | ???????????????# #??????????# #??????????????? | | ???????????????# #??????????# #??????????????? | | ??# ??????????## ##?????????# #??????????????? | | ??# #######! ########### #####+####?????? | | ??# #?????? | | ??# = = g[ +?????? | | ??# % %% #?????? | | ??# ####### ###s######+###########?????? | | ??## ????????####### @ #? ???????????????? | | ????????????????????# #? ???????????????? | | ????????????????????# # ??????????????? | | ????????????????????# # ! ??????????????? | | ????????????????????# # ?????????????? | | ????????????????????# # ?????????????? | | ????????????????????######## ????????????? | | ???????????????????????????# ????????????? | | ???????????????????????????#########???????????? | | ???????????????????????????????????????????????? | | ??????????????????????????????????????????????## | | ??????????????????????????????????????????????#! | | ??????????????????????????????????????????????# | | ??????????????????????????????????????????????# | | ??????????????????????????????????????????????# | | ??????????????????????????????????????????????# | | ??????????????????????????????????????????????# | | ??????????????????????????????????????????????## | | ???????????????????????????????????????????????? | | ???????????????????????????????????????????????? | | ???????????????????????????????????????????????? | | ???????????????????????????????????????????????? | | | | | | | +----------------------------------------------------+ Best States ------------- Heat Dissipation 41 Energy Generation 23 Energy Capacity 445 Matter Stores 300 Matter Capacity 300 Sight Range 18 Robot Scan Range 14 Terrain Scan Range 14 Terrain Scan Density 10 Evasion (%) 63 Particle Charging 15 Offensive Hacking 10 Item Schematics ----------------- None Robot Schematics ------------------ None Fabricated ------------ Nothing Alien Tech Used ----------------- None Achievements -------------- It's Just You Let's See Who's Tougher Oops Part-time Mechanic Power Corrupts Risk Taker Use The Force Challenges ------------ None Game ------ Seed BehemothSlugDevice Manual? 0 Play Time 00:54:29 Cumulative 1.9 hours Start 2024.06.13 @ 01:21:43 End 2024.06.13 @ 02:15:43 Sessions 1 Manual Loads 0 Difficulty Rogue Special Mode None Game No. 2 Rogue 2 Adventurer 0 Explorer 0 Win Type - Total 0 Types 0/0/0/0/0/0/0/0/0 Lore% 1 Gallery% 5 Achievement% 5 Wizard Run 0 Options --------- Layout 1 ASCII 0 Keyboard 1 Movement Arrows Keybinds 0 Fullscreen 1 Font 24/Smallcaps Map View 50x35 Zoom Use 0% Tactical HUD 0 Map Filters NONE Filters NONE Steam 1 RUN: 66e4ebd3-2474-4d6c-b16b-a9be89f56a4e